[Event "FRA-ch Youth 2017"]
[Site "Belfort"]
[Date "2017.04.17"]
[Round "3"]
[White "Nguyen-Cadoret, Nathan"]
[Black "Droin, Augustin"]
[Result "1/2-1/2"]
[ECO "E06"]
[WhiteElo "1930"]
[BlackElo "1738"]
[Annotator "NA"]
[PlyCount "166"]
[EventDate "2017.??.??"]
[EventCountry "FRA"]
[SourceTitle "playchess.com"]
[Source "ChessBase"]
[SourceQuality "1"]
[TimeControl "5400+30"]

1. d4 {[%emt 0:00:00]} Nf6 {[%emt 0:00:24]} 2. c4 {[%emt 0:00:00]} e6 {[%emt 0:00:05]} 3. Nf3 {[%emt 0:00:00]} d5 {[%emt 0:01:05]} 4. g3 {[%emt 0:00:00]} Be7 {[%emt 0:01:27]} 5. Bg2 {[%emt 0:00:00]} Nc6 {[%emt 0:00:18]} 6. O-O {[%emt 0:00:18]} O-O {[%emt 0:01:36]} 7. Nc3 {[%emt 0:00:34]} Ne4 {[%emt 0:05:09] E06: Closed Catalan: Early deviations} 8. Be3 $146 {[%emt 0:05:08]} (8. Qc2 f5 9. a3 a5 10. Rd1 Bf6 11. Rb1 Kh8 12. h4 h6 13. b4 axb4 14. axb4 g5 15. hxg5 hxg5 {½-½ (47) Miroshnichenko,E (2696)-Radulski,J (2539) Kallithea 2009}) 8... f5 {[%emt 0:03:27]} 9. Nd2 {[%emt 0:01:33]} Bg5 {[%emt 0:01:56]} 10. f4 {[%emt 0:01:22]} Bf6 {[%emt 0:00:26]} 11. Nf3 {[%emt 0:03:29]} h6 {[%emt 0:02:17]} (11... Na5 $11) 12. Ne5 {[%emt 0:03:22]} Ne7 {[%emt 0:04:46]} 13. Rc1 {[%emt 0:06:33]} c6 {[%emt 0:01:03]} 14. b4 {[%emt 0:03:43]} Nxc3 {[%emt 0:04:33]} 15. Rxc3 {[%emt 0:02:02]} dxc4 {[%emt 0:00:20]} 16. Rxc4 {[%emt 0:01:03]} Nd5 {[%emt 0:00:08]} 17. Bxd5 {[%emt 0:01:39]} Qxd5 18. Qc2 {[%emt 0:01:49]} Rd8 {[%emt 0:02:15]} 19. Rc5 {[%emt 0:01:03]} Qd6 {[%emt 0:00:11]} 20. Rc1 {[%emt 0:02:54]} Bd7 {[%emt 0:00:32]} 21. Bf2 {[%emt 0:01:42]} Rac8 {[%emt 0:01:41]} 22. b5 {[%emt 0:01:01]} Bxe5 {[%emt 0:01:06]} 23. dxe5 {[%emt 0:01:56]} Qf8 {[%emt 0:01:43]} 24. Rc3 {[%emt 0:04:17]} cxb5 {[%emt 0:00:51]} 25. Bxa7 {[%emt 0:02:13]} Rxc3 {[%emt 0:00:17]} 26. Qxc3 {[%emt 0:00:12]} Rc8 {[%emt 0:00:15]} 27. Bc5 {[%emt 0:00:47]} Qd8 {[%emt 0:00:28]} 28. Qe3 {[%emt 0:05:39]} Bc6 {[%emt 0:01:38]} 29. Bd6 {[%emt 0:03:43]} Bd5 {[%emt 0:00:10]} 30. a3 {[%emt 0:01:13]} Rxc1+ {[%emt 0:00:14]} 31. Qxc1 {[%emt 0:00:05]} Qd7 {[%emt 0:00:04]} 32. Qc7 {[%emt 0:02:55]} Qxc7 {[%emt 0:00:40]} 33. Bxc7 {[%emt 0:00:05]} Kf7 {[%emt 0:00:09]} 34. Kf2 {[%emt 0:00:20]} Ke8 {[%emt 0:00:06]} 35. Ke3 {[%emt 0:00:50]} Kd7 {[%emt 0:00:04]} 36. Bd6 {[%emt 0:00:03]} h5 {[%emt 0:00:09]} 37. Kd4 {[%emt 0:00:16]} Kc6 {[%emt 0:00:05]} 38. e3 {[%emt 0:02:24]} g6 {[%emt 0:00:19]} 39. Bb4 {[%emt 0:01:04]} b6 {[%emt 0:00:10]} 40. Bd6 {[%emt 0:00:11]} Be4 {[%emt 0:00:18]} 41. Be7 {[%emt 0:00:58]} Bd5 {[%emt 0:00:16]} 42. Kc3 {[%emt 0:02:19]} Be4 {[%emt 0:00:09]} 43. Bd8 {[%emt 0:00:33]} Bf3 {[%emt 0:00:30]} 44. Kd4 {[%emt 0:01:20]} Be4 {[%emt 0:00:11]} 45. Be7 {[%emt 0:00:02]} Bd5 {[%emt 0:00:16]} 46. Bb4 {[%emt 0:00:05]} Be4 {[%emt 0:00:15]} 47. Bc3 {[%emt 0:00:04]} Bc2 {[%emt 0:00:20]} 48. Bb2 {[%emt 0:00:57]} Be4 {[%emt 0:00:32]} 49. Kc3 {[%emt 0:00:19]} Kc5 {[%emt 0:01:01]} 50. Kb3 {[%emt 0:00:22]} Bd5+ {[%emt 0:00:17]} 51. Kc2 {[%emt 0:02:12]} Kc4 {[%emt 0:00:27]} 52. Bd4 {[%emt 0:00:19]} b4 {[%emt 0:00:23]} 53. axb4 {[%emt 0:00:24]} b5 {[%emt 0:00:14]} 54. Bc5 {[%emt 0:00:23]} Be4+ {[%emt 0:00:13]} 55. Kd2 {[%emt 0:00:06]} Kb3 {[%emt 0:00:02]} 56. Ke2 {[%emt 0:00:18]} Kc2 {[%emt 0:00:23]} 57. Kf2 {[%emt 0:00:08]} Kd2 {[%emt 0:00:21]} 58. h3 {[%emt 0:00:23]} Kd3 {[%emt 0:00:50]} 59. Be7 {[%emt 0:00:26]} Kd2 60. Bg5 {[%emt 0:00:32]} Kc3 {[%emt 0:00:51]} 61. Be7 {[%emt 0:00:07]} Kd2 {[%emt 0:00:23]} 62. Bd6 {[%emt 0:00:05]} Kd3 {[%emt 0:00:05]} 63. Bc5 {[%emt 0:00:29]} Kd2 {[%emt 0:00:05]} 64. Bd4 {[%emt 0:00:05]} Kd3 {[%emt 0:00:14]} 65. Ke1 {[%emt 0:00:04]} Bg2 {[%emt 0:00:46]} 66. h4 {[%emt 0:00:04]} Bf3 {[%emt 0:00:05]} 67. Bc5 {[%emt 0:00:04]} Be4 {[%emt 0:00:20]} 68. Kd1 {[%emt 0:00:11]} Bf3+ {[%emt 0:00:07]} 69. Ke1 {[%emt 0:00:00]} Be4 {[%emt 0:00:07]} 70. Kd1 {[%emt 0:03:33]} Bd5 {[%emt 0:00:10]} 71. Bb6 {[%emt 0:00:51]} Bc4 {[%emt 0:01:56]} 72. Kc1 {[%emt 0:00:47]} Ke2 {[%emt 0:00:55]} 73. Kc2 {[%emt 0:00:05]} Kf3 {[%emt 0:00:08]} 74. Kc3 {[%emt 0:00:09]} Kxg3 {[%emt 0:01:19]} 75. Bd8 {[%emt 0:00:05]} Kf2 {[%emt 0:00:17]} 76. Kd4 {[%emt 0:00:01]} Kf3 {[%emt 0:00:17]} 77. Bg5 {[%emt 0:00:13]} Be2 {[%emt 0:01:06]} 78. Kc5 $11 {[%emt 0:00:33]} Kxe3 {[%emt 0:01:34]} 79. Kd6 {[%emt 0:00:06]} Bc4 {[%emt 0:01:20]} 80. Ke7 {[%emt 0:00:07]} Ke4 {[%emt 0:00:08]} 81. Kf7 {[%emt 0:00:10]} Kd5 {[%emt 0:00:06]} 82. Kxg6 {[%emt 0:00:11]} Be2 {[%emt 0:00:25]} 83. Kf7 {[%emt 0:00:22]} Bf3 {[%emt 0:00:16]} 1/2-1/2

[Event "FRA-ch Youth 2017"]
[Site "Belfort"]
[Date "2017.04.17"]
[Round "3"]
[White "Fleurquin, Bryan"]
[Black "Micottis, Dorian"]
[Result "0-1"]
[ECO "B23"]
[WhiteElo "1921"]
[BlackElo "2249"]
[Annotator "NA"]
[PlyCount "68"]
[EventDate "2017.??.??"]
[EventCountry "FRA"]
[SourceTitle "playchess.com"]
[Source "ChessBase"]
[SourceQuality "1"]
[TimeControl "5400+30"]

1. e4 {[%emt 0:04:33]} c5 {[%emt 0:01:09]} 2. Nc3 {[%emt 0:00:13]} e6 {[%emt 0:00:05]} 3. f4 {[%emt 0:00:06]} d5 {[%emt 0:00:03]} 4. Bb5+ {[%emt 0:03:15]} Nc6 {[%emt 0:06:20]} 5. exd5 {[%emt 0:03:59] B23: Closed Sicilian: Lines without g3} (5. Nf3 Nf6 6. e5 Nd7 7. O-O Qb6 8. Bxc6 Qxc6 9. d4 Be7 10. Be3 b6 11. Kh1 O-O 12. Qd2 f5 13. exf6 Nxf6 14. Ne5 Qc7 15. Rae1 {1-0 (39) Amonatov,F (2614)-Potkin,V (2597) Almaty 2016}) 5... exd5 {[%emt 0:00:14]} 6. d4 {[%emt 0:01:01]} Nf6 {[%emt 0:11:15]} 7. Nf3 {[%emt 0:00:54]} Be7 {[%emt 0:01:25]} 8. Ne5 {[%emt 0:06:24]} Qb6 $146 {[%emt 0:15:48]} (8... O-O 9. Bxc6 bxc6 10. Nxc6 Qc7 11. Ne5 cxd4 12. Ne2 Bd6 13. O-O Ba6 14. Nd3 Rfe8 {0-1 (25) Vicas,M (1947)-Malinin,Y (2323) Plunge 2012}) 9. Be3 {[%emt 0:04:42]} O-O {[%emt 0:17:28]} 10. Bxc6 {[%emt 0:15:21]} bxc6 {[%emt 0:00:28]} 11. O-O {[%emt 0:03:13]} cxd4 {[%emt 0:04:19]} 12. Bxd4 {[%emt 0:02:24]} c5 {[%emt 0:00:42]} 13. Bf2 {[%emt 0:01:00]} Bb7 {[%emt 0:04:04]} 14. Rb1 {[%emt 0:04:02]} d4 {[%emt 0:06:15]} 15. Ne2 {[%emt 0:03:19]} Rad8 {[%emt 0:02:05]} 16. Ng3 {[%emt 0:01:20]} Ne4 {[%emt 0:03:27]} 17. Nf5 {[%emt 0:07:26]} Bf6 {[%emt 0:00:38]} 18. Bh4 {[%emt 0:15:24]} Bxh4 {[%emt 0:04:31]} 19. Nxh4 {[%emt 0:00:11]} f6 {[%emt 0:01:26]} 20. Nc4 {[%emt 0:01:36]} Qe6 {[%emt 0:00:20]} 21. Qe2 {[%emt 0:02:32]} Rfe8 {[%emt 0:01:33]} 22. Nd2 {[%emt 0:04:33]} Ba6 {[%emt 0:01:06]} 23. Qxe4 {[%emt 0:01:12]} Qxe4 {[%emt 0:00:51]} 24. Nxe4 {[%emt 0:00:07]} Bxf1 {[%emt 0:01:12]} 25. Nxc5 {[%emt 0:00:26]} Bc4 {[%emt 0:00:40]} 26. b3 {[%emt 0:01:28]} Bb5 $19 {[%emt 0:02:28]} 27. a4 {[%emt 0:00:25]} Bc6 {[%emt 0:00:39]} 28. Kf2 {[%emt 0:06:14]} Be4 {[%emt 0:01:56]} 29. Rb2 {[%emt 0:03:39]} a5 {[%emt 0:02:34]} 30. Nf3 {[%emt 0:00:51]} Bxf3 {[%emt 0:04:31]} 31. Kxf3 {[%emt 0:02:14]} Re3+ {[%emt 0:00:04]} 32. Kf2 {[%emt 0:00:38]} Rde8 {[%emt 0:00:05]} 33. Nb7 {[%emt 0:01:13]} Re2+ {[%emt 0:00:56]} 34. Kf1 {[%emt 0:00:16]} d3 {[%emt 0:00:04]} 0-1

[Event "FRA-ch Youth 2017"]
[Site "Belfort"]
[Date "2017.04.17"]
[Round "3"]
[White "Meillon, Judicael"]
[Black "Lamhene, Elias"]
[Result "1-0"]
[ECO "B20"]
[WhiteElo "1884"]
[BlackElo "1715"]
[Annotator "NA"]
[PlyCount "123"]
[EventDate "2017.??.??"]
[EventCountry "FRA"]
[SourceTitle "playchess.com"]
[Source "ChessBase"]
[SourceQuality "1"]
[TimeControl "5400+30"]

1. e4 {[%emt 0:00:00]} c5 {[%emt 0:00:17]} 2. b4 {[%emt 0:00:00]} d6 {[%emt 0:02:15]} 3. Nf3 {[%emt 0:02:50]} Nf6 {[%emt 0:01:26]} 4. Bb5+ {[%emt 0:01:44] B50: Sicilian: 2...d6, Miscellaneous} (4. bxc5 Nxe4 5. cxd6 Nxd6 6. h3 Nc6 7. d4 g6 8. Be2 Bg7 9. O-O O-O 10. Bf4 Qb6 11. c3 Qb2 12. Nbd2 Qxc3 13. Nb3 {0-1 (35) Sosa,T (2266)-Kropff,R (2216) Asuncion 2013}) 4... Bd7 {[%emt 0:00:59]} 5. Bxd7+ {[%emt 0:01:46]} Nbxd7 $146 {[%emt 0:02:42]} (5... Qxd7 6. d3 g6 7. bxc5 dxc5 8. Bb2 Bg7 9. O-O O-O 10. Nbd2 Nc6 11. Nc4 Rfd8 {0-1 (34) Kramer,W (1331)-Safarian,A (1899) Adelaide 2003}) ({Of course not} 5... Kxd7 $6 6. bxc5 e6 7. d4 Nxe4 8. Qd3 $16) 6. bxc5 {[%emt 0:02:31]} Nxc5 {[%emt 0:01:06]} 7. d3 {[%emt 0:04:51]} g6 {[%emt 0:01:29]} 8. Nc3 {[%emt 0:07:45]} Bg7 {[%emt 0:00:21]} 9. Bd2 {[%emt 0:01:12]} O-O {[%emt 0:01:31]} 10. O-O {[%emt 0:02:02]} d5 {[%emt 0:05:42]} 11. exd5 {[%emt 0:01:26]} Nxd5 {[%emt 0:00:29]} 12. Nxd5 {[%emt 0:00:11]} Qxd5 {[%emt 0:00:23]} 13. d4 {[%emt 0:01:02]} Ne4 {[%emt 0:01:38]} 14. Bb4 {[%emt 0:08:44]} Rfe8 {[%emt 0:01:57]} 15. Qd3 {[%emt 0:02:49]} Ng5 {[%emt 0:04:23]} 16. Nxg5 {[%emt 0:01:28]} Qxg5 {[%emt 0:00:18]} 17. Rad1 {[%emt 0:10:07]} Rad8 {[%emt 0:03:37]} 18. Qe4 {[%emt 0:06:02]} Qb5 {[%emt 0:04:22]} 19. c3 {[%emt 0:01:45]} a5 {[%emt 0:00:34]} 20. Bc5 {[%emt 0:00:26]} Qc4 {[%emt 0:02:10]} 21. Rb1 {[%emt 0:02:27]} b5 {[%emt 0:01:59]} 22. Qc6 {[%emt 0:01:08]} Rb8 {[%emt 0:02:22]} 23. Qa6 {[%emt 0:03:57]} a4 {[%emt 0:07:02]} 24. Rfd1 {[%emt 0:03:40]} Qxa2 {[%emt 0:08:56]} 25. Rxb5 {[%emt 0:01:12]} Qe2 {[%emt 0:09:11]} 26. Rdb1 {[%emt 0:00:13]} Rxb5 {[%emt 0:00:33]} 27. Qxb5 Qxb5 {[%emt 0:00:14]} 28. Rxb5 {[%emt 0:00:11]} Ra8 {[%emt 0:00:07]} 29. Ba3 {[%emt 0:01:38]} ({But not} 29. Bxe7 $2 Re8 30. Ra5 (30. Rb7 $2 Bf8 31. Kf1 Rxe7 $19) 30... Rxe7 $19) 29... e6 {[%emt 0:02:01]} 30. Kf1 {[%emt 0:02:34]} Bf8 {[%emt 0:00:20]} 31. Bxf8 {[%emt 0:00:13]} Kxf8 {[%emt 0:00:08]} 32. Ke2 {[%emt 0:00:06]} a3 {[%emt 0:00:05]} 33. Rb1 {[%emt 0:00:03]} a2 {[%emt 0:00:15]} 34. Ra1 {[%emt 0:00:02]} Ke7 {[%emt 0:00:26]} 35. Kd3 {[%emt 0:00:22]} Kd6 {[%emt 0:00:11]} 36. Kc4 {[%emt 0:00:20]} Ra7 {[%emt 0:09:24]} 37. Kb3 $14 {[%emt 0:00:23]} Rb7+ {[%emt 0:00:41]} 38. Kxa2 {[%emt 0:00:06]} Kd5 {[%emt 0:00:09]} 39. Rb1 {[%emt 0:00:06]} Rc7 {[%emt 0:00:55]} 40. Kb3 {[%emt 0:00:16]} Ke4 {[%emt 0:01:27]} 41. Kc2 {[%emt 0:01:05]} Rd7 {[%emt 0:01:30]} 42. Re1+ {[%emt 0:00:16]} Kd5 {[%emt 0:00:13]} 43. Re5+ {[%emt 0:00:19]} Kc6 {[%emt 0:00:33]} 44. Rc5+ {[%emt 0:00:48]} Kb6 {[%emt 0:00:15]} 45. Kd3 {[%emt 0:00:23]} f6 {[%emt 0:00:20]} 46. Kc4 {[%emt 0:00:09]} f5 {[%emt 0:01:34]} 47. Kb4 {[%emt 0:01:07]} h5 {[%emt 0:00:41]} 48. Re5 {[%emt 0:00:19]} Rd6 {[%emt 0:00:30]} 49. c4 {[%emt 0:00:04]} Kc6 {[%emt 0:00:44]} 50. Rxe6 {[%emt 0:00:27]} Rxe6 {[%emt 0:00:13]} 51. d5+ {[%emt 0:00:01]} Kd6 {[%emt 0:00:10]} 52. dxe6 {[%emt 0:00:03]} Kxe6 {[%emt 0:00:07]} 53. Kc5 {[%emt 0:00:17]} Kd7 {[%emt 0:00:18]} 54. Kd5 {[%emt 0:00:03]} h4 {[%emt 0:00:42]} 55. Ke5 {[%emt 0:00:05]} Kc6 {[%emt 0:00:24]} 56. Kf6 {[%emt 0:00:11]} f4 {[%emt 0:00:16]} 57. Kxg6 {[%emt 0:00:07]} Kc5 {[%emt 0:00:02]} 58. Kf5 {[%emt 0:00:07]} Kxc4 {[%emt 0:00:12]} 59. Kxf4 {[%emt 0:00:03]} Kd5 {[%emt 0:00:07]} 60. Kg5 {[%emt 0:00:04]} Ke6 {[%emt 0:00:06]} 61. f4 {[%emt 0:00:05]} Kf7 {[%emt 0:00:02]} 62. f5 {[%emt 0:00:09]} 1-0

[Event "FRA-ch Youth 2017"]
[Site "Belfort"]
[Date "2017.04.17"]
[Round "3"]
[White "Verhille, Elie"]
[Black "Popov, Konstantin"]
[Result "0-1"]
[ECO "B21"]
[WhiteElo "1765"]
[BlackElo "2026"]
[Annotator "NA"]
[PlyCount "92"]
[EventDate "2017.??.??"]
[EventCountry "FRA"]
[SourceTitle "playchess.com"]
[Source "ChessBase"]
[SourceQuality "1"]
[TimeControl "5400+30"]

1. e4 {[%emt 0:00:00]} c5 {[%emt 0:00:28]} 2. f4 {[%emt 0:00:00]} d5 {[%emt 0:00:20]} 3. exd5 {[%emt 0:00:00]} Nf6 {[%emt 0:00:31]} 4. Bb5+ {[%emt 0:00:00]} Nbd7 {[%emt 0:00:53]} 5. c4 {[%emt 0:00:59]} a6 {[%emt 0:00:10]} 6. Ba4 {[%emt 0:04:14]} b5 {[%emt 0:00:13] B21: Sicilian: 2 f4 and Morra Gambit} 7. cxb5 {[%emt 0:00:56]} Nxd5 {[%emt 0:00:24]} 8. Ne2 {[%emt 0:01:59]} (8. Nf3 g6 9. Nc3 N5b6 10. d4 Bg7 11. Bc2 cxd4 12. Nxd4 O-O 13. O-O axb5 14. Ndxb5 {½-½ (54) Zernyshkin,V (2319)-Yakovich,Y (2539) Samara 2011}) 8... g6 {[%emt 0:05:40]} 9. Nbc3 {[%emt 0:02:48]} N5b6 {[%emt 0:00:20]} 10. Bc2 {[%emt 0:03:35]} Bb7 $146 {[%emt 0:00:33]} (10... Bg7 11. bxa6 Bxa6 12. d3 O-O 13. O-O Nf6 14. f5 {½-½ (41) Taylor,T-Mirabile,T England 1995}) 11. O-O {[%emt 0:01:01]} Bg7 {[%emt 0:00:10]} 12. bxa6 {[%emt 0:00:55]} Bxa6 {[%emt 0:00:20]} 13. Be4 {[%emt 0:04:03]} Rc8 {[%emt 0:00:32]} 14. Re1 {[%emt 0:01:41]} O-O {[%emt 0:01:32]} 15. Nd5 {[%emt 0:05:15]} Nxd5 {[%emt 0:02:25]} 16. Bxd5 {[%emt 0:00:04]} e6 {[%emt 0:00:07]} 17. Bf3 {[%emt 0:00:33]} c4 {[%emt 0:00:16]} 18. Rb1 {[%emt 0:01:04]} Nc5 {[%emt 0:00:15]} 19. g3 {[%emt 0:10:05]} Nd3 {[%emt 0:00:23]} 20. Rf1 {[%emt 0:00:18]} Qb6+ {[%emt 0:02:09]} 21. Kg2 {[%emt 0:00:17]} Rfd8 {[%emt 0:01:00]} 22. Ng1 {[%emt 0:08:05]} Qa5 {[%emt 0:01:03]} 23. a3 {[%emt 0:01:43]} Nxb2 {[%emt 0:02:00]} 24. Qe1 {[%emt 0:09:10]} c3 {[%emt 0:05:12]} 25. dxc3 {[%emt 0:03:54]} Bxc3 {[%emt 0:01:27]} 26. Qf2 {[%emt 0:01:02]} Bd4 {[%emt 0:02:54]} (26... Qxa3 $2 27. Be2 Bxe2 28. Qxe2 Qa8+ 29. Qf3 $19) 27. Be3 {[%emt 0:01:01]} Bxf1+ {[%emt 0:00:26]} 28. Rxf1 {[%emt 0:00:52]} Bxe3 {[%emt 0:00:28]} ({Weaker is} 28... Qxa3 29. Bxd4 Qa4 30. Ne2 $14 (30. Bxb2 Rc2 $11)) 29. Qxe3 {[%emt 0:00:26]} Nc4 {[%emt 0:00:44]} 30. Qb3 {[%emt 0:00:32]} Nd2 {[%emt 0:00:11]} 31. Qb4 {[%emt 0:00:24]} Qxb4 {[%emt 0:00:09]} 32. axb4 {[%emt 0:00:04]} Nxf1 {[%emt 0:00:07]} 33. Kxf1 {[%emt 0:00:04]} Rb8 {[%emt 0:00:06]} 34. Ne2 {[%emt 0:00:28]} Rxb4 {[%emt 0:00:08]} 35. Kf2 {[%emt 0:00:37]} Rd2 {[%emt 0:01:36]} 36. Ke3 {[%emt 0:00:19]} Rxe2+ {[%emt 0:00:04]} 37. Bxe2 {[%emt 0:00:14]} Kf8 {[%emt 0:00:04]} 38. Bf3 {[%emt 0:00:25]} Ke7 {[%emt 0:00:04]} 39. Be4 {[%emt 0:00:08]} f5 $19 {[%emt 0:00:34]} 40. Bd3 {[%emt 0:00:23]} e5 {[%emt 0:00:18]} 41. fxe5 {[%emt 0:00:03]} Ke6 {[%emt 0:00:10]} 42. h3 {[%emt 0:00:20]} Kxe5 {[%emt 0:00:04]} 43. h4 {[%emt 0:00:13]} Rb3 {[%emt 0:00:30]} 44. Kd2 {[%emt 0:01:21]} Kd4 {[%emt 0:00:10]} 45. Bc2 {[%emt 0:01:06]} Rxg3 {[%emt 0:00:04]} 46. h5 {[%emt 0:00:08]} Rg2+ {[%emt 0:00:05]} 0-1

[Event "FRA-ch Youth 2017"]
[Site "Belfort"]
[Date "2017.04.17"]
[Round "3"]
[White "Benezra, Esther"]
[Black "Afraoui, Anaelle"]
[Result "0-1"]
[ECO "B40"]
[WhiteElo "1761"]
[BlackElo "1977"]
[Annotator "NA"]
[PlyCount "78"]
[EventDate "2017.??.??"]
[EventCountry "FRA"]
[SourceTitle "playchess.com"]
[Source "ChessBase"]
[SourceQuality "1"]
[TimeControl "5400+30"]

1. e4 {[%emt 0:00:00]} c5 {[%emt 0:00:06]} 2. Nf3 {[%emt 0:00:00]} e6 {[%emt 0:00:16]} 3. b3 {[%emt 0:00:14]} d6 {[%emt 0:01:30]} 4. Bb2 {[%emt 0:03:02]} Nf6 {[%emt 0:01:20]} 5. Nc3 {[%emt 0:02:11]} Be7 {[%emt 0:01:58]} 6. d4 {[%emt 0:02:02]} cxd4 {[%emt 0:01:55]} 7. Nxd4 {[%emt 0:00:16]} O-O {[%emt 0:01:29] B50: Sicilian: 2...d6, Miscellaneous} 8. Bd3 {[%emt 0:03:03]} (8. Be2 Nbd7 9. O-O Nc5 10. Bf3 a6 11. a4 Qc7 12. Re1 Rd8 13. Qe2 Bf8 14. Qe3 e5 15. Nde2 {1-0 (60) Antipov,M (2538)-Laurusas,T (2429) Khanty-Mansiysk 2015}) 8... Nbd7 {[%emt 0:06:02]} 9. Nce2 $146 {[%emt 0:03:19]} (9. O-O a6 10. a4 Qc7 11. Nce2 b6 12. Ng3 Bb7 13. Qe2 Nc5 {½-½ (13) Hartz,E-Esterluss,H (2240) Frankfurt 2001}) 9... Nc5 {[%emt 0:07:14]} 10. f3 {[%emt 0:02:52]} a6 {[%emt 0:08:11]} 11. c4 {[%emt 0:03:07]} Qc7 {[%emt 0:03:37]} 12. O-O {[%emt 0:02:59]} b6 {[%emt 0:03:50]} 13. b4 {[%emt 0:12:13]} Nxd3 {[%emt 0:02:11]} 14. Qxd3 {[%emt 0:00:12]} Bb7 {[%emt 0:00:42]} 15. Ng3 {[%emt 0:06:38]} Rac8 {[%emt 0:06:24]} 16. Rac1 {[%emt 0:02:00]} Qd7 {[%emt 0:07:40]} 17. f4 {[%emt 0:10:12]} d5 {[%emt 0:07:43]} 18. cxd5 {[%emt 0:02:33]} Bxb4 {[%emt 0:02:42]} 19. dxe6 {[%emt 0:01:25]} fxe6 {[%emt 0:00:41]} 20. Qb3 {[%emt 0:03:09]} Bc5 {[%emt 0:02:13] [#]} 21. Rxc5 $1 {[%emt 0:01:47]} bxc5 {[%emt 0:02:52]} 22. Nxe6 {[%emt 0:00:33]} Rf7 {[%emt 0:01:06]} 23. Bxf6 {[%emt 0:12:56]} c4 {[%emt 0:03:41]} 24. Qb4 {[%emt 0:07:51]} Rxf6 {[%emt 0:01:40]} 25. f5 {[%emt 0:02:03]} Rf7 {[%emt 0:14:31]} 26. Rc1 {[%emt 0:03:01]} Qb5 {[%emt 0:04:13]} 27. Qc3 {[%emt 0:01:50]} a5 {[%emt 0:00:34]} 28. Rd1 {[%emt 0:02:25]} Rd7 {[%emt 0:02:03]} 29. Kf2 {[%emt 0:04:07]} Qb6+ {[%emt 0:02:59]} 30. Kf3 {[%emt 0:00:50]} Re7 {[%emt 0:00:43]} 31. Nh5 {[%emt 0:01:10]} Qb4 {[%emt 0:02:41]} 32. Qe5 {[%emt 0:01:45]} c3 {[%emt 0:00:41]} 33. Nhxg7 {[%emt 0:02:37]} c2 $19 {[%emt 0:00:29]} 34. Rc1 {[%emt 0:00:05]} Qc3+ {[%emt 0:00:31]} 35. Qxc3 {[%emt 0:00:13]} Rxc3+ {[%emt 0:00:05]} 36. Ke2 {[%emt 0:00:13]} Bxe4 {[%emt 0:00:33]} 37. Kd2 {[%emt 0:01:04]} Rc8 {[%emt 0:00:18]} 38. f6 {[%emt 0:00:24]} Rd7+ {[%emt 0:00:27]} 39. Ke2 {[%emt 0:00:43]} Bg6 {[%emt 0:00:43]} 0-1

[Event "FRA-ch Youth 2017"]
[Site "Belfort"]
[Date "2017.04.17"]
[Round "3"]
[White "Laurent-Paoli, Louis"]
[Black "Roux, Baptiste"]
[Result "1-0"]
[ECO "B22"]
[WhiteElo "1749"]
[BlackElo "1934"]
[Annotator "NA"]
[PlyCount "129"]
[EventDate "2017.??.??"]
[EventCountry "FRA"]
[SourceTitle "playchess.com"]
[Source "ChessBase"]
[SourceQuality "1"]
[TimeControl "5400+30"]

1. e4 {[%emt 0:00:00]} c5 {[%emt 0:00:11]} 2. c3 {[%emt 0:00:00]} Nf6 {[%emt 0:00:44]} 3. e5 {[%emt 0:00:00]} Nd5 {[%emt 0:00:06]} 4. d4 {[%emt 0:00:02]} cxd4 {[%emt 0:00:08]} 5. cxd4 {[%emt 0:00:10]} e6 {[%emt 0:00:26]} 6. Nf3 {[%emt 0:00:12]} d6 {[%emt 0:00:14]} 7. exd6 {[%emt 0:00:37]} Bxd6 {[%emt 0:00:32]} 8. Nc3 {[%emt 0:01:08]} Nc6 {[%emt 0:05:31]} 9. Nxd5 {[%emt 0:07:36] B22: Sicilian: 2 c3} (9. Bd3 O-O 10. O-O Be7 11. Be4 Bf6 12. a3 Re8 13. Qd3 g6 14. Re1 Nxc3 15. bxc3 Bd7 16. Bf4 Rc8 17. Rab1 b6 18. c4 Na5 19. Rec1 Bc6 20. d5 {½-½ (20) Rusev,K (2544)-Chatalbashev,B (2549) Vrnjacka Banja 2012}) 9... exd5 {[%emt 0:00:05]} 10. Bd3 {[%emt 0:02:56]} Qe7+ {[%emt 0:02:24]} 11. Qe2 {[%emt 0:11:46]} Bb4+ {[%emt 0:07:33]} 12. Bd2 {[%emt 0:03:37]} O-O $146 {[%emt 0:01:16]} (12... Bxd2+ 13. Kxd2 Be6 14. a3 O-O 15. Rhd1 Qf6 16. Qe3 Bg4 {0-1 (33) Tsyrennimaev,Z (2052)-Bannikova,A (2170) Novokuznetsk 2007}) 13. Bxb4 {[%emt 0:08:10]} Qxb4+ {[%emt 0:00:52]} 14. Qd2 {[%emt 0:00:13]} Re8+ {[%emt 0:01:26]} 15. Kd1 {[%emt 0:00:16]} Bg4 {[%emt 0:01:34]} 16. Qxb4 {[%emt 0:04:09]} Nxb4 {[%emt 0:00:07]} 17. Kd2 {[%emt 0:03:43]} Nc6 {[%emt 0:01:43]} 18. Bb5 {[%emt 0:04:17]} Re4 {[%emt 0:01:52]} 19. Bxc6 {[%emt 0:07:24]} bxc6 {[%emt 0:00:10]} 20. Rac1 {[%emt 0:01:24]} Rc8 {[%emt 0:02:03]} 21. Kd3 {[%emt 0:04:37]} Bxf3 {[%emt 0:04:46]} 22. gxf3 {[%emt 0:00:13]} Rf4 {[%emt 0:00:18]} 23. Ke3 {[%emt 0:02:06]} g5 {[%emt 0:01:58]} 24. Rhg1 {[%emt 0:19:33]} Re8+ {[%emt 0:01:53]} 25. Kd2 {[%emt 0:00:13]} Rxd4+ {[%emt 0:00:12]} 26. Kc3 {[%emt 0:01:05]} Rc4+ {[%emt 0:00:21]} 27. Kd3 {[%emt 0:00:17]} Rxc1 {[%emt 0:00:47]} 28. Rxc1 {[%emt 0:00:30]} Re6 {[%emt 0:02:11]} 29. Rc5 {[%emt 0:00:50]} Kf8 {[%emt 0:02:14]} 30. Ra5 {[%emt 0:00:15]} Re7 {[%emt 0:00:19]} 31. Ra6 {[%emt 0:00:08]} Rc7 {[%emt 0:00:08]} 32. Kd4 {[%emt 0:00:37]} Ke7 {[%emt 0:00:13]} 33. Kc5 {[%emt 0:00:48]} Ke6 {[%emt 0:02:54]} 34. b3 {[%emt 0:01:49]} Ke5 {[%emt 0:00:37]} 35. Ra4 $17 {[%emt 0:00:09]} f5 {[%emt 0:00:34]} 36. Rb4 {[%emt 0:03:51]} Rd7 {[%emt 0:05:23]} 37. Rd4 {[%emt 0:00:22]} a5 {[%emt 0:03:29]} 38. a3 {[%emt 0:05:15]} Rb7 {[%emt 0:18:19]} 39. b4 {[%emt 0:00:35]} axb4 {[%emt 0:00:13]} 40. axb4 {[%emt 0:00:07]} Rd7 {[%emt 0:00:35]} 41. Rd3 {[%emt 0:01:24]} Rb7 {[%emt 0:06:17]} 42. Rd4 {[%emt 0:01:11]} h5 {[%emt 0:01:47]} 43. h3 {[%emt 0:01:04]} h4 {[%emt 0:00:30]} 44. Rd3 {[%emt 0:01:53]} Rb5+ {[%emt 0:01:36]} 45. Kxc6 {[%emt 0:00:12]} Rxb4 {[%emt 0:00:17]} 46. Rxd5+ {[%emt 0:01:36]} Kf4 {[%emt 0:00:10]} 47. Kd6 {[%emt 0:02:45]} Rb6+ {[%emt 0:04:47]} 48. Ke7 {[%emt 0:00:20]} Rg6 {[%emt 0:03:24]} 49. Kf7 {[%emt 0:00:16]} Rh6 {[%emt 0:00:08]} 50. Rc5 {[%emt 0:01:33]} Ra6 {[%emt 0:03:53]} 51. Rd5 {[%emt 0:00:38]} Ra2 {[%emt 0:03:44]} 52. Kf6 {[%emt 0:00:35]} Rxf2 {[%emt 0:01:09]} 53. Rxf5+ {[%emt 0:00:07]} Kg3 {[%emt 0:01:20]} 54. Kxg5 {[%emt 0:01:38]} Ra2 55. Re5 Kxh3 {[%emt 0:02:52]} 56. f4 {[%emt 0:01:11]} Rg2+ {[%emt 0:00:37]} 57. Kh5 {[%emt 0:00:28]} Kg3 {[%emt 0:00:57]} 58. Rg5+ {[%emt 0:00:28]} Kxf4 {[%emt 0:00:37]} 59. Rxg2 {[%emt 0:00:12]} h3 {[%emt 0:00:11]} 60. Ra2 {[%emt 0:00:23]} Kg3 {[%emt 0:00:10]} 61. Ra3+ {[%emt 0:00:11]} Kg2 {[%emt 0:00:09]} 62. Kg4 {[%emt 0:00:31]} h2 {[%emt 0:00:05]} 63. Ra2+ {[%emt 0:00:21]} Kg1 {[%emt 0:00:05]} 64. Kg3 {[%emt 0:00:45]} h1=N+ {[%emt 0:00:19]} 65. Kf3 {[%emt 0:00:31]} 1-0